bitfinex/quotes_SOLUSD_20240925
["timestamp","ask_amount","ask_price","bid_price","bid_amount"]
[1727307970459,6.7604,147.92,147.9,0.12549]
[1727307970642,6.76,147.93,147.9,0.12549]
[1727307971043,6.76,147.93,147.89,0.12549]
[1727307971378,15.638,147.94,147.89,0.12549]
[1727307971379,6.7605,147.92,147.89,0.12549]
[1727307972568,7.35328727,147.97,147.9,0.12549]
[1727307972868,18.58741706,147.96,147.89,0.12549]
[1727307973070,6.7613,147.9,147.89,0.25098]
[1727307973263,6.7608,147.91,147.89,0.25098]
[1727307975537,6.7605,147.92,147.89,0.25098]
[1727307976260,6.7612,147.91,147.87,20.0]
[1727307977465,6.7604,147.92,147.88,21.60323764]
[1727307977769,6.7604,147.92,147.88,20.25098]
[1727307978448,24.24898727,147.97,147.89,25.12905339]
[1727307978645,6.7595,147.94,147.9,27.01208]
[1727307978846,6.7595,147.94,147.9,20.25098]
[1727307979278,7.35328727,147.97,147.91,23.776884]
[1727307979572,0.4207938,147.97,147.95,20.12549]
[1727307979755,0.4207938,147.97,147.96,52.13612889]
[1727307980453,0.4207938,147.97,147.96,0.12549]
[1727307980654,0.4207938,147.97,147.96,1.35162847]
[1727307980853,0.4207938,147.97,147.96,1.60260847]
[1727307981060,0.4207938,147.97,147.96,25.37949247]
[1727307981263,0.4207938,147.97,147.96,52.13799247]
[1727307981758,0.4207938,147.97,147.96,50.786364]
[1727307985052,0.4207938,147.97,147.96,20.0]
[1727307986450,0.4207938,147.97,147.94,6.7593]
[1727307986967,0.4207938,147.97,147.91,6.4447]
[1727307986968,6.7585,147.96,147.91,13.2054]
[1727307987152,6.759,147.95,147.9,23.6643]
[1727307988062,6.7595,147.94,147.9,16.9031]
[1727307988657,6.7595,147.94,147.91,0.25098]
[1727307989482,2.11026857,147.97,147.91,0.25098]
[1727307989781,6.7591,147.95,147.91,0.25098]
[1727307990380,6.7591,147.95,147.91,20.25098]
[1727307991380,6.7603,147.93,147.89,20.0]
[1727307991579,1.69018012,147.96,147.86,16.9067]
[1727307991770,6.7605,147.92,147.87,6.7624]
[1727307993390,1.69018012,147.96,147.86,16.9067]
[1727307993391,1.69018012,147.96,147.88,20.25098]
[1727307993558,6.76,147.93,147.9,0.12549]
[1727307994453,0.4207938,147.97,147.91,0.12549]
[1727307994454,6.7595,147.94,147.91,0.12549]
[1727307994779,6.7595,147.94,147.91,0.25098]
[1727307995280,6.7595,147.94,147.9,0.25098]
[1727307995869,6.7599,147.93,147.9,0.25098]
[1727307996054,6.7595,147.94,147.9,0.25098]
[1727307996667,0.4207938,147.97,147.91,23.776884]
[1727307996867,0.4207938,147.97,147.92,0.25098]
[1727307997065,6.7586,147.96,147.92,0.25098]
[1727307997569,0.4207938,147.97,147.92,0.25098]
[1727307997782,7.1789938,147.97,147.92,27.01118]
[1727307998063,1.68970135,147.96,147.92,20.12549]
[1727307998287,0.4207938,147.97,147.92,0.12549]
[1727307998288,6.7593,147.95,147.92,0.12549]
[1727308001280,1.68990841,147.94,147.88,20.0]
[1727308001789,2.11097537,147.97,147.88,20.0]
[1727308001992,6.7604,147.92,147.88,20.0]
[1727308002373,6.7604,147.92,147.88,26.7621]
[1727308002678,6.7604,147.92,147.89,0.25098]
[1727308002864,6.7595,147.94,147.89,7.01248]
[1727308003069,6.7595,147.94,147.91,0.25098]
[1727308004196,0.4207938,147.97,147.91,0.25098]
[1727308004493,6.7591,147.95,147.91,0.25098]
[1727308004747,6.7585,147.96,147.91,32.14021309]
[1727308004879,0.4207938,147.97,147.93,0.25098]
[1727308005197,7.1788938,147.97,147.93,7.01078]
[1727308005372,7.1788938,147.97,147.94,1.35169576]
[1727308005880,7.1788938,147.97,147.93,7.01078]
[1727308006467,0.4207938,147.97,147.93,7.01078]
[1727308007298,7.1789938,147.97,147.93,20.25098]
[1727308008196,0.4207938,147.97,147.93,20.25098]
[1727308008398,6.7586,147.96,147.93,20.25098]
[1727308009974,6.7586,147.96,147.93,21.60274976]
[1727308010488,0.4207938,147.97,147.93,8.36234976]
[1727308011385,0.4207938,147.97,147.93,7.01058]
[1727308011605,2.11036046,147.97,147.93,0.25098]
[1727308011777,6.7591,147.95,147.93,0.25098]
[1727308012278,6.7587,147.96,147.93,0.25098]
[1727308013402,8.44871333,147.95,147.93,0.12549]
[1727308013580,6.759,147.95,147.93,0.12549]
[1727308014380,2.11064044,147.97,147.92,20.0]
[1727308014591,6.7597,147.94,147.91,0.12549]
[1727308014775,6.7597,147.94,147.91,20.0]
[1727308014977,6.7599,147.93,147.91,20.0]
[1727308015190,6.7596,147.94,147.91,20.0]
[1727308015497,6.759,147.95,147.92,1.35202067]
[1727308019728,6.759,147.95,147.92,0.25098]
[1727308020004,6.7601,147.93,147.91,0.12549]
[1727308020505,6.7601,147.93,147.9,0.25098]
[1727308022209,6.7601,147.93,147.89,20.0]
[1727308022414,6.7604,147.92,147.89,20.0]
[1727308023621,1.69023472,147.93,147.9,1.35218718]
[1727308023622,6.76,147.93,147.9,1.35218718]
[1727308025126,6.76,147.93,147.9,0.12549]
[1727308027254,6.7608,147.91,147.89,20.0]
[1727308027596,6.7608,147.91,147.88,20.0]
[1727308027900,6.7605,147.92,147.89,1.60323477]
[1727308028308,6.7605,147.92,147.89,21.60323477]
[1727308029321,6.7605,147.92,147.89,20.25098]
[1727308029736,6.7605,147.92,147.88,0.25098]
[1727308031528,6.7618,147.89,147.85,23.6717]
[1727308032437,8.45280595,147.88,147.83,13.3629]
[1727308032730,8.45280595,147.88,147.84,20.0]
[1727308032731,6.7623,147.88,147.84,20.0]
[1727308033416,6.7623,147.88,147.84,26.764]
[1727308033799,6.7623,147.88,147.85,0.25098]
[1727308034030,6.7618,147.89,147.85,0.25098]
[1727308034230,16.9006,147.93,147.85,1.60348696]
[1727308034526,16.2127,147.94,147.87,20.25098]
[1727308034527,6.7609,147.91,147.87,20.25098]
[1727308034701,16.2127,147.94,147.88,1.35228404]
[1727308034902,6.7603,147.93,147.89,0.25098]
[1727308035129,6.7595,147.94,147.91,0.12549]
[1727308037304,6.7595,147.94,147.91,20.12549]
[1727308039211,6.7595,147.94,147.91,0.12549]
[1727308039520,6.7595,147.94,147.9,0.12549]
[1727308040524,6.7595,147.94,147.9,23.902374]
[1727308040718,6.7591,147.95,147.92,0.12549]
[1727308040925,6.7591,147.95,147.92,1.47740395]
[1727308041225,15.1115,147.98,147.94,0.12549]
[1727308041423,21.8692,147.98,147.94,1.47722973]
[1727308041614,277.29875388,148.0,147.96,0.12549]
[1727308041927,284.05585388,148.0,147.96,1.60248939]
[1727308042136,6.7572,147.99,147.96,1.60248939]
[1727308042425,6.7572,147.99,147.96,0.25098]
[1727308044919,277.29875388,148.0,147.96,25.37937296]
[1727308045233,277.29875388,148.0,147.96,52.13787296]
[1727308045710,277.29875388,148.0,147.96,58.15517296]
[1727308046436,277.29875388,148.0,147.96,56.803664]
[1727308048834,277.29875388,148.0,147.96,20.0]
[1727308048835,284.05555388,148.0,147.96,20.0]
[1727308050533,284.05555388,148.0,147.96,20.25098]
[1727308054136,1.68934136,147.99,147.96,20.25098]
[1727308055941,6.7576,147.98,147.94,20.0]
[1727308056234,299.48215388,148.0,147.96,0.12549]
[1727308057020,284.05585388,148.0,147.96,27.00948]
[1727308057728,284.05585388,148.0,147.96,0.25098]
[1727308060842,284.05585388,148.0,147.96,1.60246406]
[1727308061049,277.29875388,148.0,147.96,52.13784806]
[1727308062640,277.29875388,148.0,147.96,50.786364]
[1727308071233,277.29875388,148.0,147.96,52.13770956]
[1727308072546,277.29875388,148.0,147.96,50.786364]
[1727308078662,284.05565388,148.0,147.96,26.7585]
[1727308078955,277.29875388,148.0,147.96,20.0]
[1727308079260,284.05555388,148.0,147.95,23.6556]
[1727308080147,284.05555388,148.0,147.96,0.25098]
[1727308080454,8.44671262,147.99,147.96,20.0]
[1727308080666,2.11026689,147.97,147.92,16.9008]
[1727308080865,6.7594,147.95,147.9,6.7612]
[1727308081030,6.7586,147.96,147.91,6.7607]
[1727308081235,7.1788938,147.97,147.92,0.90849566]
[1727308081429,7.1788938,147.97,147.93,6.7599]
[1727308082043,7.1788938,147.97,147.92,6.7603]
[1727308082438,7.1788938,147.97,147.93,0.25098]
[1727308082644,7.1788938,147.97,147.93,1.60276626]
[1727308083437,0.4207938,147.97,147.95,0.12549]
[1727308083945,0.4207938,147.97,147.96,0.12549]
[1727308084141,0.4207938,147.97,147.96,7.00948]
[1727308084554,0.4207938,147.97,147.96,52.13790297]
[1727308086038,0.4207938,147.97,147.96,50.786364]
[1727308091371,0.4207938,147.97,147.96,26.7585]
[1727308092572,0.4207938,147.97,147.96,50.786364]
[1727308094657,0.4207938,147.97,147.96,20.0]
[1727308096174,0.4207938,147.97,147.96,20.25098]
[1727308097667,0.4207938,147.97,147.92,16.9003]
[1727308097873,6.7587,147.96,147.93,20.0]
[1727308098073,6.759,147.95,147.92,16.9003]
[1727308098252,0.4207938,147.97,147.89,16.9038]
[1727308098253,1.68989289,147.94,147.89,16.9038]
[1727308098453,6.3286,147.96,147.89,16.9038]
[1727308098683,6.76,147.93,147.89,16.9038]
[1727308099269,8.45018027,147.93,147.89,16.9038]
[1727308100082,8.45018027,147.93,147.9,0.12549]
[1727308100767,6.76,147.93,147.9,0.12549]
[1727308104182,15.0882,147.94,147.9,28.36412406]
[1727308104470,7.1788938,147.97,147.92,27.01128]
[1727308104662,7.1788938,147.97,147.94,0.12549]
[1727308104861,0.4207938,147.97,147.94,0.12549]
[1727308105065,0.4207938,147.97,147.94,0.25098]
[1727308105266,0.4207938,147.97,147.94,21.47711568]
[1727308105452,0.4207938,147.97,147.94,20.0]
[1727308105857,0.4207938,147.97,147.95,0.12549]
[1727308107455,0.4207938,147.97,147.94,0.25098]
[1727308107655,0.4207938,147.97,147.94,20.25098]
[1727308108453,0.4207938,147.97,147.94,21.60268344]
[1727308109272,0.4207938,147.97,147.94,20.25098]
[1727308109769,7.1789938,147.97,147.94,20.25098]
[1727308110262,8.44823778,147.96,147.94,0.12549]
[1727308110477,8.44823778,147.96,147.93,0.25098]
[1727308111379,6.7586,147.96,147.93,0.25098]
[1727308112468,7.1789938,147.97,147.93,0.25098]
[1727308113369,7.1789938,147.97,147.93,1.60278965]
[1727308113574,8.86868936,147.97,147.93,0.25098]
[1727308116293,7.1789938,147.97,147.93,0.25098]
[1727308116877,7.1789938,147.97,147.9,16.9028]
[1727308116878,1.68969719,147.96,147.9,16.9028]
[1727308117067,6.7595,147.94,147.88,20.0]
[1727308117266,6.7591,147.95,147.89,1.35202251]
[1727308117593,0.4207938,147.97,147.91,6.7607]
[1727308117594,6.7586,147.96,147.91,6.7607]
[1727308117767,6.7586,147.96,147.92,1.35193885]
[1727308119398,6.7586,147.96,147.93,0.12549]
[1727308119975,6.7586,147.96,147.93,1.47733798]
[1727308120389,6.7586,147.96,147.93,1.47734337]
[1727308120787,7.1789938,147.97,147.94,0.12549]
[1727308121592,7.1789938,147.97,147.93,0.25098]
[1727308121989,6.7586,147.96,147.93,0.25098]
[1727308122979,6.7586,147.96,147.93,0.12549]
[1727308124398,0.4207938,147.97,147.92,20.0]
[1727308124694,6.759,147.95,147.92,20.0]
[1727308125278,6.759,147.95,147.91,23.6624]
[1727308125797,6.759,147.95,147.92,20.0]
[1727308126094,6.7586,147.96,147.92,26.7603]
[1727308126487,6.7586,147.96,147.93,0.12549]
[1727308127208,7.1788938,147.97,147.93,1.47730088]
[1727308128797,7.1788938,147.97,147.93,0.12549]
[1727308129288,6.7586,147.96,147.93,0.12549]
[1727308129695,6.7586,147.96,147.92,20.0]
[1727308130993,6.7586,147.96,147.93,1.47732094]
[1727308131194,7.1789938,147.97,147.93,8.23722094]
[1727308131490,0.4207938,147.97,147.93,8.23722094]
[1727308132186,0.4207938,147.97,147.94,30.536284]
[1727308132389,0.4207938,147.97,147.95,1.35164494]
[1727308132702,0.4207938,147.97,147.95,28.11044494]
[1727308132881,0.4207938,147.97,147.95,21.35164494]
[1727308133506,0.4207938,147.97,147.95,20.0]
[1727308134591,0.4207938,147.97,147.95,21.35159706]
[1727308137700,0.4207938,147.97,147.96,52.13796168]
[1727308138912,0.4207938,147.97,147.96,50.786364]
[1727308140695,0.4207938,147.97,147.96,44.027864]
[1727308140891,0.4207938,147.97,147.94,6.7594]
[1727308141298,0.4207938,147.97,147.92,16.9006]
[1727308141495,0.4207938,147.97,147.94,6.7594]
[1727308141695,7.1792938,147.97,147.92,23.6609]
[1727308142702,7.1792938,147.97,147.93,20.0]
[1727308143286,0.4207938,147.97,147.94,25.25411646]
[1727308143607,0.4207938,147.97,147.94,32.01351646]
[1727308148217,0.4207938,147.97,147.96,23.902374]
[1727308148390,0.4207938,147.97,147.96,25.25380991]
[1727308148900,0.4207938,147.97,147.96,30.786364]
[1727308149295,0.4207938,147.97,147.96,50.786364]
[1727308150000,0.4207938,147.97,147.96,23.902374]
[1727308150200,0.4207938,147.97,147.96,52.1377507]
[1727308150800,0.4207938,147.97,147.96,50.786364]
[1727308153892,0.4207938,147.97,147.96,52.13769607]
[1727308155702,0.4207938,147.97,147.96,50.786364]
[1727308155906,0.4207938,147.97,147.96,20.0]
[1727308156116,0.4207938,147.97,147.95,6.7588]
[1727308156305,0.4207938,147.97,147.94,16.8981]
[1727308157511,0.4207938,147.97,147.93,6.7598]
[1727308157821,7.1788938,147.97,147.93,6.7598]
[1727308158320,2.11035761,147.97,147.92,20.0]
[1727308158501,2.11035761,147.97,147.91,16.9015]
[1727308158502,6.759,147.95,147.91,16.9015]
[1727308158708,6.759,147.95,147.92,1.35187596]
[1727308158917,6.759,147.95,147.91,16.9015]
[1727308159611,6.759,147.95,147.92,21.35191333]
[1727308161721,6.7586,147.96,147.93,0.25098]
[1727308161910,6.7586,147.96,147.93,24.027864]
[1727308162222,0.4207938,147.97,147.95,0.12549]
[1727308167937,8.86886361,147.97,147.94,20.0]
[1727308168526,2.11036361,147.97,147.94,0.12549]
[1727308168844,6.7586,147.96,147.94,0.12549]
[1727308169217,0.4207938,147.97,147.94,0.12549]
[1727308169412,7.1789938,147.97,147.94,0.12549]
[1727308170723,6.7588,147.96,147.94,0.12549]
[1727308172330,6.7591,147.95,147.92,20.0]
[1727308172535,1.68984616,147.94,147.89,6.7616]
[1727308172837,6.7603,147.93,147.9,20.0]
[1727308173155,6.7603,147.93,147.89,20.0]
[1727308173745,6.7605,147.92,147.89,20.0]
[1727308174127,6.7605,147.92,147.9,0.12549]
[1727308174437,6.76,147.93,147.9,0.12549]
[1727308177822,1.69012418,147.92,147.88,0.12549]
[1727308178041,1.69012418,147.92,147.87,6.7626]
[1727308178042,6.7614,147.9,147.85,16.9086]
[1727308178522,6.7614,147.9,147.85,23.6718]
[1727308178723,6.7614,147.9,147.85,16.9086]
[1727308178922,6.7609,147.91,147.86,6.7631]
[1727308179623,15.0522,147.93,147.88,0.12549]
[1727308179823,6.5586,147.96,147.9,0.12549]
[1727308180024,6.7595,147.94,147.9,0.12549]
[1727308183933,6.76,147.93,147.9,0.12549]
[1727308184947,6.76,147.93,147.89,23.902374]
[1727308186849,6.7608,147.91,147.89,0.12549]
[1727308187147,6.7608,147.91,147.88,20.12549]
[1727308187544,6.7608,147.91,147.88,0.12549]
[1727308187769,8.24894515,147.96,147.86,20.0]
[1727308187770,6.7614,147.9,147.86,20.0]
[1727308188951,6.7614,147.9,147.86,26.763]
[1727308189157,6.7614,147.9,147.87,0.12549]
[1727308191534,16.8981,147.95,147.87,0.12549]
[1727308191743,6.7609,147.91,147.87,0.12549]
[1727308192568,6.7604,147.92,147.87,32.14253182]
[1727308192770,6.7604,147.92,147.88,26.7621]
[1727308193062,6.7604,147.92,147.89,1.35220707]
[1727308194166,6.7604,147.92,147.88,28.1143107]
[1727308194463,6.7604,147.92,147.89,0.12549]
[1727308195044,6.7598,147.94,147.89,30.664074]
[1727308195565,6.7601,147.93,147.89,30.664074]
[1727308199975,6.7605,147.92,147.89,0.12549]
[1727308200173,1.69017684,147.95,147.89,0.12549]
[1727308200375,6.7612,147.91,147.85,43.6715]
[1727308200582,6.7612,147.91,147.87,20.0]
[1727308200775,6.7612,147.91,147.88,20.0]
[1727308201076,6.76,147.93,147.88,28.11444063]
[1727308201583,6.76,147.93,147.89,0.12549]
[1727308202683,6.7594,147.95,147.89,30.663674]
[1727308202853,6.5586,147.96,147.9,26.7612]
[1727308202854,6.7595,147.94,147.9,26.7612]
[1727308203249,15.9249938,147.97,147.91,25.37992322]
[1727308203487,22.6834938,147.97,147.93,23.902374]
[1727308203692,22.6834938,147.97,147.93,25.25415714]
[1727308203693,15.9249938,147.97,147.93,25.25415714]
[1727308203861,15.9249938,147.97,147.93,32.01395714]
[1727308204263,22.6832938,147.97,147.93,23.902374]
[1727308204910,0.4207938,147.97,147.94,8.1111759]
[1727308205369,0.4207938,147.97,147.94,6.7594]
[1727308205561,0.4207938,147.97,147.96,0.12549]
[1727308205781,0.4207938,147.97,147.96,6.88399]
[1727308205985,0.4207938,147.97,147.96,30.786364]
[1727308208297,0.4207938,147.97,147.96,50.786364]
[1727308208591,0.4207938,147.97,147.96,63.08646122]
[1727308209877,0.4207938,147.97,147.96,50.786364]
[1727308210274,0.4207938,147.97,147.96,63.08646122]
[1727308211485,0.4207938,147.97,147.96,64.43768719]
[1727308212090,0.4207938,147.97,147.96,63.08646122]
[1727308212700,0.4207938,147.97,147.96,64.43768329]
[1727308214603,0.4207938,147.97,147.96,63.08646122]
[1727308216819,0.4207938,147.97,147.96,64.43763331]
[1727308217120,0.4207938,147.97,147.96,63.08646122]
[1727308217717,0.4207938,147.97,147.96,39.30957722]
[1727308217883,0.4207938,147.97,147.96,40.66083585]
[1727308219322,0.4207938,147.97,147.96,64.43771985]
[1727308220416,0.4207938,147.97,147.96,63.08646122]
[1727308223216,0.4207938,147.97,147.96,64.43763824]
[1727308223716,0.4207938,147.97,147.96,63.08646122]
[1727308224124,0.4207938,147.97,147.96,64.43763932]
[1727308224904,277.29875388,148.0,147.99,27.00818]
[1727308225216,277.29875388,148.0,147.99,64.43628775]
[1727308227114,277.29875388,148.0,147.99,52.13619053]
[1727308227329,277.29875388,148.0,147.99,50.785064]
[1727308228395,277.29875388,148.0,147.99,26.7572]
[1727308229619,277.29875388,148.0,147.99,27.00818]
[1727308229820,277.29875388,148.0,147.99,20.0]
[1727308231032,277.29875388,148.0,147.99,43.902374]
[1727308232037,277.29875388,148.0,147.99,50.659574]
[1727308233722,277.29875388,148.0,147.99,50.459574]
[1727308235122,277.29875388,148.0,147.99,50.585064]
[1727308235421,277.29875388,148.0,147.99,51.93631012]
[1727308236235,277.29875388,148.0,147.99,50.585064]
[1727308237396,277.29875388,148.0,147.99,51.93626105]
[1727308237709,277.29875388,148.0,147.99,50.585064]
[1727308240229,277.29875388,148.0,147.99,51.93626266]
[1727308240541,277.29875388,148.0,147.99,64.23635988]
[1727308242928,277.29875388,148.0,147.99,62.88516122]
[1727308243235,277.29875388,148.0,147.99,64.23623982]
[1727308245514,277.29875388,148.0,147.99,62.88516122]
[1727308245713,273.30415388,148.0,147.99,64.23621019]
[1727308246647,239.41785388,148.0,147.99,64.23621019]
[1727308246943,16.4024,148.12,148.06,20.0]
[1727308247106,16.4024,148.12,148.09,26.7526]
[1727308247312,16.4024,148.12,148.09,28.10275228]
[1727308247510,0.4207938,148.15,148.09,28.10275228]
[1727308248740,0.4207938,148.15,148.09,52.13061628]
[1727308250719,0.4207938,148.15,148.09,64.4307135]
[1727308251239,0.4207938,148.15,148.09,52.13061628]
[1727308251435,8.85846382,148.15,148.09,50.780464]
[1727308252517,2.10836382,148.15,148.09,50.780464]
[1727308253429,0.4207938,148.15,148.09,50.780464]
[1727308254338,2.10842269,148.15,148.09,50.780464]
[1727308254845,0.4207938,148.15,148.09,50.780464]
[1727308256444,0.4207938,148.15,148.09,27.00358]
[1727308256624,0.4207938,148.15,148.09,28.35378152]
[1727308259229,7.1706938,148.15,148.09,28.35378152]
[1727308259428,0.4207938,148.15,148.09,64.43076274]
[1727308263125,6.7509,148.13,148.05,20.0]
[1727308263428,6.7504,148.14,148.05,32.30009722]
[1727308264441,6.7504,148.14,148.06,24.027864]
[1727308264655,8.85826829,148.15,148.09,20.0]
[1727308264955,8.85826829,148.15,148.09,20.25098]
[1727308265539,8.85826829,148.15,148.09,27.00358]
[1727308266039,15.708,148.11,148.08,6.753]
[1727308266442,15.708,148.11,148.06,6.7535]
[1727308266650,22.4597,148.11,148.06,6.7539]
[1727308267142,22.4597,148.11,148.07,20.0]
[1727308267337,15.708,148.11,148.07,26.7534]
[1727308268144,15.708,148.11,148.08,0.12549]
[1727308269226,15.708,148.11,148.09,20.12549]
[1727308269636,15.708,148.11,148.09,26.87809]
[1727308270037,15.708,148.11,148.09,27.00358]
[1727308270226,0.4207938,148.15,148.09,63.08056122]
[1727308270622,0.4207938,148.15,148.09,64.43047254]
[1727308272331,0.4207938,148.15,148.09,71.30208906]
[1727308272952,0.4207938,148.15,148.1,24.027864]
[1727308273137,0.4207938,148.15,148.11,21.34974733]
[1727308273330,0.4207938,148.15,148.14,0.25098]
[1727308273662,0.4207938,148.15,148.14,1.60075228]
[1727308274443,0.4207938,148.15,148.14,44.027864]
[1727308275763,0.4207938,148.15,148.14,0.25098]
[1727308278048,0.4207938,148.15,148.14,20.0]
[1727308278226,0.4207938,148.15,148.14,44.027864]
[1727308279551,0.4207938,148.15,148.14,45.37739878]
[1727308287270,0.4207938,148.15,148.14,48.36327856]
[1727308292368,0.4207938,148.15,148.14,60.62444032]
[1727308296663,0.4207938,148.15,148.14,59.27490554]
[1727308301149,0.4207938,148.15,148.14,56.28902576]
[1727308302270,0.4207938,148.15,148.14,44.027864]
[1727308302480,0.4207938,148.15,148.14,56.28902576]
[1727308305372,0.2506623,148.19,148.18,56.28902576]
[1727308311479,22.7317,148.18,148.12,7.05726446]
[1727308311656,1.6873023,148.17,148.12,7.05726446]
[1727308311862,1.6873023,148.17,148.1,90.39455104]
[1727308311863,6.7494,148.16,148.1,90.39455104]
[1727308312075,6.7494,148.16,148.06,12.26116176]
[1727308312076,1.68773604,148.15,148.06,12.26116176]
[1727308312279,23.0538,148.14,148.04,93.41573417]
[1727308312571,16.3033,148.14,148.06,1.17532489]
[1727308312889,16.3033,148.14,148.07,1.35033375]
[1727308313458,16.3033,148.14,148.08,0.12549]
[1727308313680,16.3033,148.14,148.09,1.350334]
[1727308314390,16.3033,148.14,148.11,20.0]
[1727308314588,16.3033,148.14,148.12,6.7511]
[1727308314955,16.3033,148.14,148.13,6.7508]
[1727308315470,16.3033,148.14,148.11,20.0]
[1727308315471,16.3033,148.14,148.12,6.87669]
[1727308320560,16.3033,148.14,148.05,26.24830307]
[1727308320561,1.68768586,148.13,148.1,6.7521]
[1727308320760,1.68768586,148.13,148.11,20.0]
[1727308320960,16.3033,148.14,148.11,20.0]
[1727308321183,16.3033,148.14,148.03,22.36016685]
[1727308321184,16.3033,148.14,148.06,20.0]
[1727308321598,16.3033,148.14,148.12,6.7511]
[1727308324099,1.68769983,148.13,148.1,6.752]
[1727308324272,1.68769983,148.13,148.11,20.0]
[1727308325893,16.3033,148.14,148.11,20.0]
[1727308332608,16.3033,148.14,148.1,0.12549]
[1727308332909,28.9159,148.18,148.13,6.7508]
[1727308333891,22.1672,148.18,148.13,6.7508]
[1727308334091,6.749,148.17,148.13,6.7508]
[1727308337009,22.1672,148.18,148.14,6.75]
[1727308337216,15.7388,148.18,148.13,0.25098]
[1727308337516,15.7388,148.18,148.15,6.7498]
[1727308338831,15.7388,148.18,148.13,0.12549]
[1727308338996,1.68732859,148.17,148.13,0.12549]
[1727308340925,15.7388,148.18,148.13,1.47547031]
[1727308341738,15.7388,148.18,148.13,0.12549]
[1727308344822,15.7388,148.18,148.13,1.4754469]
[1727308345022,15.7388,148.18,148.13,0.12549]
[1727308345531,0.2506623,148.19,148.14,0.12549]
[1727308347426,0.2506623,148.19,148.15,0.12549]
[1727308347626,6.9990623,148.19,148.15,0.12549]
[1727308347826,1.68740445,148.18,148.11,20.0]
[1727308348002,6.749,148.17,148.11,20.0]
[1727308348202,1.68757155,148.16,148.11,20.0]
[1727308349100,1.68762849,148.17,148.11,20.0]
[1727308349907,6.7489,148.18,148.12,0.12549]
[1727308350114,0.2506623,148.19,148.14,0.12549]
[1727308352109,0.2506623,148.19,148.13,23.902374]
[1727308352319,0.2506623,148.19,148.15,0.12549]
[1727308355140,8.68602767,148.19,148.13,0.12549]
[1727308357812,6.9987623,148.19,148.13,0.12549]
[1727308359132,1.68750496,148.18,148.13,0.12549]
[1727308360039,6.9987623,148.19,148.13,0.12549]
[1727308361637,1.68750588,148.18,148.13,0.12549]
[1727308362917,6.9987623,148.19,148.13,0.12549]
[1727308363118,1.68750659,148.18,148.13,0.12549]
[1727308364548,6.7486,148.18,148.13,0.12549]
[1727308364721,1.68750685,148.17,148.13,0.12549]
[1727308364914,8.43650685,148.17,148.12,0.12549]
[1727308365612,0.2506623,148.19,148.12,0.12549]
[1727308365824,0.2506623,148.19,148.12,1.60104895]
[1727308366120,6.9987623,148.19,148.12,0.25098]
[1727308366640,6.7486,148.18,148.12,0.25098]
[1727308367145,6.9987623,148.19,148.12,0.25098]
[1727308367437,0.2506623,148.19,148.12,1.60098485]
[1727308367616,0.2506623,148.19,148.12,0.25098]
[1727308367935,0.2506623,148.19,148.12,1.60092799]
[1727308368448,0.2506623,148.19,148.12,0.25098]
[1727308369142,6.9988623,148.19,148.12,0.25098]
[1727308371047,1.68746056,148.18,148.12,0.25098]
[1727308371540,6.9988623,148.19,148.12,0.25098]
[1727308373632,6.9988623,148.19,148.14,0.12549]
[1727308376253,0.2506623,148.19,148.16,0.12549]
[1727308377142,0.2506623,148.19,148.15,0.12549]
[1727308381851,1.93793612,148.19,148.15,0.12549]
[1727308382225,0.2506623,148.19,148.15,0.12549]
[1727308386955,1.93795951,148.19,148.15,0.12549]
[1727308388024,0.2506623,148.19,148.16,12.27661982]
[1727308388227,0.2506623,148.19,148.17,20.12549]
[1727308392763,0.2506623,148.19,148.18,33.87707418]
[1727308394232,0.2506623,148.19,148.18,32.52759982]
[1727308396859,0.2506623,148.19,148.18,0.25098]
[1727308397153,0.2506623,148.19,148.18,20.25098]
[1727308397562,0.2506623,148.19,148.18,0.25098]
[1727308398474,0.2506623,148.19,148.15,15.0535]
[1727308398475,0.2506623,148.19,148.14,6.2852]
[1727308398759,6.9990623,148.19,148.12,12.27661982]
[1727308398968,0.2506623,148.19,148.13,12.27661982]